[Event "GER-ch Youth U14w 2019"]
[Site "Willingen"]
[Date "2019.06.14"]
[Round "8.11"]
[White "Albayrak, Nese Pinar"]
[Black "Oswald, Hannah"]
[Result "0-1"]
[ECO "B06"]
[WhiteElo "1530"]
[BlackElo "1632"]
[Annotator "NA"]
[PlyCount "90"]
[EventDate "2019.06.07"]
[EventType "swiss"]
[EventRounds "9"]
[EventCountry "GER"]
[SourceTitle "playchess.com"]
[Source "ChessBase"]
[SourceQuality "1"]
[TimeControl "40/5400+30:1800+30"]

1. e4 {[%emt 0:00:00]} g6 {[%emt 0:00:00]} 2. d4 {[%emt 0:00:00]} Bg7 {[%emt 0:00:00]} 3. Nf3 {[%emt 0:00:00]} d6 {[%emt 0:00:08]} 4. h3 {[%emt 0:00:56]} e6 {[%emt 0:00:51]} 5. Bf4 {[%emt 0:08:33]} Nd7 {[%emt 0:01:33]} 6. c3 {[%emt 0:02:35]} a6 {[%emt 0:02:50]} 7. Nbd2 {[%emt 0:02:29]} Ne7 {[%emt 0:01:00]} 8. Bd3 {[%emt 0:03:59]} b6 {[%emt 0:01:31]} 9. Qe2 {[%emt 0:02:40]} Bb7 {[%emt 0:01:04]} 10. O-O {[%emt 0:02:26]} h6 {[%emt 0:02:59]} 11. e5 {[%emt 0:05:19]} d5 {[%emt 0:04:03]} 12. Nh2 {[%emt 0:03:08]} Nf5 {[%emt 0:10:29]} 13. Bxf5 {[%emt 0:08:39]} gxf5 {[%emt 0:00:20]} 14. Qh5 {[%emt 0:03:21]} Qe7 {[%emt 0:03:33]} 15. Rac1 {[%emt 0:01:57]} O-O-O {[%emt 0:09:34]} 16. c4 {[%emt 0:09:39]} dxc4 {[%emt 0:02:44]} 17. Nxc4 {[%emt 0:00:49]} Kb8 {[%emt 0:01:27]} 18. Ne3 {[%emt 0:01:12]} Nf8 {[%emt 0:04:59]} 19. Nc2 {[%emt 0:05:38]} Ng6 {[%emt 0:03:13]} 20. Bd2 {[%emt 0:03:24]} Nxe5 {[%emt 0:02:25]} 21. Bb4 {[%emt 0:09:30]} c5 {[%emt 0:04:10]} 22. Bxc5 {[%emt 0:04:03]} bxc5 {[%emt 0:01:02]} 23. dxe5 {[%emt 0:00:00]} Bxe5 {[%emt 0:00:54]} 24. Rfe1 {[%emt 0:01:32]} Bxh2+ {[%emt 0:04:50]} 25. Kxh2 {[%emt 0:00:30]} Rhg8 {[%emt 0:02:32]} 26. Ne3 {[%emt 0:04:18]} Qc7+ {[%emt 0:01:50]} 27. Kh1 {[%emt 0:03:07]} Rd3 {[%emt 0:07:48]} 28. Rg1 {[%emt 0:02:40]} Rdd8 {[%emt 0:03:59]} 29. b4 Qf4 {[%emt 0:03:35]} 30. Qe2 {[%emt 0:03:49]} cxb4 {[%emt 0:01:29]} 31. Rc4 {[%emt 0:00:59]} Qd6 {[%emt 0:01:05]} 32. Rd1 {[%emt 0:00:44]} Bxg2+ {[%emt 0:03:43]} 33. Nxg2 {[%emt 0:02:07]} Qxd1+ {[%emt 0:00:10]} 34. Qxd1 {[%emt 0:00:05]} Rxd1+ {[%emt 0:00:06]} 35. Kh2 {[%emt 0:00:06]} a5 {[%emt 0:01:07]} 36. Rc5 {[%emt 0:00:32]} Rd2 {[%emt 0:00:42]} 37. Kg1 {[%emt 0:03:12]} Rxa2 {[%emt 0:01:29]} 38. Kf1 {[%emt 0:00:32]} Ra1+ {[%emt 0:00:14]} 39. Ne1 {[%emt 0:00:07]} Rc8 {[%emt 0:01:37]} 40. Rb5+ {[%emt 0:01:28]} Ka7 {[%emt 0:00:18]} 41. Ke2 {[%emt 0:31:09]} Rb8 {[%emt 0:30:58]} 42. Re5 {[%emt 0:00:47]} b3 {[%emt 0:00:25]} 43. Re3 {[%emt 0:01:50]} b2 {[%emt 0:00:32]} 44. Nc2 {[%emt 0:00:17]} b1=Q {[%emt 0:00:39]} 45. Nxa1 {[%emt 0:00:15]} Qxa1 {[%emt 0:00:08] normal} 0-1

[Event "GER-ch Youth U14w 2019"]
[Site "Willingen"]
[Date "2019.06.14"]
[Round "8.12"]
[White "Zixin, Li"]
[Black "Werner, Rosalie"]
[Result "1/2-1/2"]
[ECO "C11"]
[WhiteElo "1284"]
[BlackElo "1610"]
[Annotator "NA"]
[PlyCount "55"]
[EventDate "2019.06.07"]
[EventType "swiss"]
[EventRounds "9"]
[EventCountry "GER"]
[SourceTitle "playchess.com"]
[Source "ChessBase"]
[SourceQuality "1"]
[TimeControl "40/5400+30:1800+30"]

1. e4 {[%emt 0:00:00]} e6 {[%emt 0:00:00]} 2. d4 {[%emt 0:00:00]} d5 {[%emt 0:00:00]} 3. Nc3 {[%emt 0:00:00]} Nf6 {[%emt 0:00:00]} 4. e5 {[%emt 0:00:00]} Nfd7 {[%emt 0:00:00]} 5. f4 {[%emt 0:02:08]} a6 {[%emt 0:00:36]} 6. Nf3 {[%emt 0:01:09]} c5 {[%emt 0:00:36]} 7. dxc5 {[%emt 0:03:19]} Bxc5 {[%emt 0:03:32]} 8. Ne2 {[%emt 0:04:43]} b5 {[%emt 0:08:08]} 9. Qd3 {[%emt 0:05:26]} Qb6 {[%emt 0:04:57]} 10. Ned4 {[%emt 0:02:13]} g6 {[%emt 0:05:20]} 11. Be3 {[%emt 0:07:25]} Nc6 {[%emt 0:01:44]} 12. Qd2 {[%emt 0:01:07]} Bb7 {[%emt 0:01:47]} 13. Be2 {[%emt 0:01:21]} Rc8 {[%emt 0:01:30]} 14. O-O {[%emt 0:00:43]} h5 {[%emt 0:09:10]} 15. c3 {[%emt 0:01:32]} Qc7 {[%emt 0:06:44]} 16. Ng5 {[%emt 0:02:01]} Nxd4 {[%emt 0:06:49]} 17. Bxd4 {[%emt 0:00:17]} Bxd4+ {[%emt 0:08:34]} 18. Qxd4 {[%emt 0:00:19]} Kf8 {[%emt 0:06:52]} 19. Bd3 {[%emt 0:01:32]} Qb6 {[%emt 0:06:22]} 20. Nf3 {[%emt 0:04:17]} Kg7 {[%emt 0:02:55]} 21. Qxb6 {[%emt 0:01:36]} Nxb6 {[%emt 0:00:11]} 22. Nd4 {[%emt 0:00:05]} Nc4 {[%emt 0:01:29]} 23. Bxc4 {[%emt 0:03:48]} dxc4 {[%emt 0:00:42]} 24. h4 {[%emt 0:02:40]} Rhd8 {[%emt 0:02:37]} 25. g3 {[%emt 0:00:36]} Rc7 {[%emt 0:01:25]} 26. Kf2 {[%emt 0:03:20] normal} Be4 {[%emt 0:05:49]} 27. Ke3 {[%emt 0:00:35] normal} Bd3 {[%emt 0:00:34]} 28. Rfd1 {[%emt 0:01:39] normal} 1/2-1/2

[Event "GER-ch Youth U14w 2019"]
[Site "Willingen"]
[Date "2019.06.15"]
[Round "9.1"]
[White "Butenandt, Svenja"]
[Black "Bashylina, Luisa"]
[Result "0-1"]
[ECO "E73"]
[WhiteElo "1722"]
[BlackElo "1886"]
[Annotator "NA"]
[PlyCount "47"]
[EventDate "2019.06.07"]
[EventType "swiss"]
[EventRounds "9"]
[EventCountry "GER"]
[SourceTitle "playchess.com"]
[Source "ChessBase"]
[SourceQuality "1"]
[TimeControl "40/5400+30:1800+30"]

1. d4 {[%emt 0:00:00]} Nf6 {[%emt 0:00:00]} 2. c4 {[%emt 0:00:00]} g6 {[%emt 0:00:00]} 3. Nc3 {[%emt 0:00:00]} Bg7 {[%emt 0:00:00]} 4. e4 {[%emt 0:00:00]} d6 {[%emt 0:00:00]} 5. Be2 {[%emt 0:00:00]} O-O {[%emt 0:00:00]} 6. Bg5 {[%emt 0:00:00]} h6 {[%emt 0:00:39]} 7. Be3 {[%emt 0:00:00]} e5 {[%emt 0:00:43]} 8. d5 {[%emt 0:00:35]} Nbd7 {[%emt 0:01:07]} 9. Qd2 {[%emt 0:00:37]} Nc5 {[%emt 0:00:14]} 10. f3 {[%emt 0:00:32]} Nh5 {[%emt 0:02:08]} 11. g4 {[%emt 0:04:16]} Nf4 {[%emt 0:00:28]} 12. Bxf4 {[%emt 0:01:25]} exf4 {[%emt 0:00:08]} 13. Qxf4 {[%emt 0:00:54]} Qe7 {[%emt 0:07:35]} 14. O-O-O a5 {[%emt 0:02:59]} 15. Qd2 {[%emt 0:15:17]} a4 {[%emt 0:08:30]} 16. h4 {[%emt 0:01:38]} a3 {[%emt 0:05:24]} 17. b4 {[%emt 0:11:01]} Na4 {[%emt 0:04:56]} 18. Nxa4 {[%emt 0:07:33]} Rxa4 {[%emt 0:00:14]} 19. Kc2 {[%emt 0:03:31]} Qe5 {[%emt 0:02:11]} 20. Rb1 {[%emt 0:01:09]} Bd7 {[%emt 0:06:09]} 21. Bd3 {[%emt 0:04:14]} Raa8 {[%emt 0:03:03]} 22. Kd1 {[%emt 0:07:56]} Qd4 {[%emt 0:05:59] normal} 23. Ne2 {[%emt 0:05:33]} Qf2 {[%emt 0:02:09]} 24. Ng1 {[%emt 0:01:18] normal} 0-1

[Event "GER-ch Youth U14w 2019"]
[Site "Willingen"]
[Date "2019.06.15"]
[Round "9.2"]
[White "Buchholz, Maja"]
[Black "Doll, Rebecca"]
[Result "0-1"]
[ECO "C44"]
[WhiteElo "1657"]
[BlackElo "1678"]
[Annotator "NA"]
[PlyCount "67"]
[EventDate "2019.06.07"]
[EventType "swiss"]
[EventRounds "9"]
[EventCountry "GER"]
[SourceTitle "playchess.com"]
[Source "ChessBase"]
[SourceQuality "1"]
[TimeControl "40/5400+30:1800+30"]

1. e4 {[%emt 0:00:00]} e5 {[%emt 0:00:00]} 2. Nf3 {[%emt 0:00:00]} Nc6 {[%emt 0:00:00]} 3. d4 {[%emt 0:00:00]} exd4 {[%emt 0:00:00]} 4. Nxd4 {[%emt 0:00:00]} Nf6 {[%emt 0:00:02]} 5. Nc3 {[%emt 0:00:00]} Bb4 {[%emt 0:00:23]} 6. Nxc6 {[%emt 0:00:19]} bxc6 {[%emt 0:00:16]} 7. Bd3 {[%emt 0:00:20]} d5 {[%emt 0:06:48]} 8. exd5 {[%emt 0:00:25]} O-O {[%emt 0:02:47]} 9. O-O {[%emt 0:00:56]} cxd5 {[%emt 0:00:20]} 10. h3 {[%emt 0:00:29]} c6 {[%emt 0:02:16]} 11. Bg5 {[%emt 0:00:36]} Be6 {[%emt 0:06:32]} 12. Qf3 {[%emt 0:04:15]} Rb8 {[%emt 0:04:13]} 13. Na4 {[%emt 0:02:56]} Re8 {[%emt 0:11:49]} 14. Rac1 {[%emt 0:03:15]} Be7 {[%emt 0:16:47]} 15. Rfe1 {[%emt 0:01:25]} h6 {[%emt 0:03:20]} 16. Bf4 {[%emt 0:01:21]} Rb4 {[%emt 0:03:11]} 17. b3 {[%emt 0:01:10]} Bd6 {[%emt 0:02:20]} 18. Bd2 {[%emt 0:03:07]} Rb7 {[%emt 0:03:31]} 19. Be3 {[%emt 0:01:06]} Ne4 {[%emt 0:08:49]} 20. Bxe4 {[%emt 0:06:06]} dxe4 {[%emt 0:00:17]} 21. Qxe4 {[%emt 0:01:59]} Bxb3 {[%emt 0:03:56]} 22. Qxc6 {[%emt 0:01:22]} Rc7 {[%emt 0:01:03]} 23. Qa6 {[%emt 0:02:40]} Bxc2 {[%emt 0:03:43]} 24. Bxa7 {[%emt 0:05:59]} Rxe1+ {[%emt 0:00:57]} 25. Rxe1 {[%emt 0:00:34]} Bb4 {[%emt 0:07:12]} 26. Re3 {[%emt 0:09:30]} Qd1+ {[%emt 0:03:36]} 27. Kh2 {[%emt 0:01:53]} Bxa4 {[%emt 0:00:26]} 28. Rd3 {[%emt 0:03:32]} Qc2 {[%emt 0:03:26]} 29. Rd4 {[%emt 0:02:34]} Rc6 {[%emt 0:00:15]} 30. Qb7 {[%emt 0:03:24]} Ba3 {[%emt 0:01:28]} 31. Rd8+ {[%emt 0:09:55]} Kh7 {[%emt 0:01:04]} 32. Qxf7 {[%emt 0:02:57]} Rf6 {[%emt 0:00:56]} 33. Qg8+ {[%emt 0:01:48]} Kg6 {[%emt 0:00:05]} 34. Bd4 {[%emt 0:00:29] normal} 0-1

[Event "GER-ch Youth U14w 2019"]
[Site "Willingen"]
[Date "2019.06.15"]
[Round "9.6"]
[White "Yue, Qizhou"]
[Black "Bildat, Emilia"]
[Result "1-0"]
[ECO "B24"]
[WhiteElo "1840"]
[BlackElo "1649"]
[Annotator "NA"]
[PlyCount "38"]
[EventDate "2019.06.07"]
[EventType "swiss"]
[EventRounds "9"]
[EventCountry "GER"]
[SourceTitle "playchess.com"]
[Source "ChessBase"]
[SourceQuality "1"]
[TimeControl "40/5400+30:1800+30"]

1. e4 {[%emt 0:00:00]} c5 {[%emt 0:00:00]} 2. Nc3 {[%emt 0:00:00]} Nc6 {[%emt 0:00:00]} 3. Bb5 {[%emt 0:00:00]} g6 {[%emt 0:00:00]} 4. Bxc6 {[%emt 0:00:00]} dxc6 {[%emt 0:00:03]} 5. d3 {[%emt 0:00:24]} Bg7 {[%emt 0:00:15]} 6. f4 {[%emt 0:01:29]} c4 {[%emt 0:03:24]} 7. Nf3 {[%emt 0:08:48]} cxd3 {[%emt 0:01:23]} 8. cxd3 {[%emt 0:00:20]} Bg4 {[%emt 0:02:16]} 9. O-O {[%emt 0:00:56]} Qb6+ {[%emt 0:03:11]} 10. Kh1 {[%emt 0:00:37]} O-O-O {[%emt 0:01:42]} 11. h3 {[%emt 0:02:16]} Bxf3 {[%emt 0:00:58]} 12. Qxf3 {[%emt 0:00:30]} e6 {[%emt 0:01:35]} 13. a3 {[%emt 0:07:53]} Ne7 {[%emt 0:02:18]} 14. Qe2 {[%emt 0:07:29]} Qb3 {[%emt 0:03:58]} 15. a4 {[%emt 0:02:47]} a5 {[%emt 0:07:14]} 16. Ra3 {[%emt 0:04:55]} Qb6 {[%emt 0:00:40]} 17. Be3 {[%emt 0:01:02]} Bd4 {[%emt 0:00:37]} 18. Bxd4 {[%emt 0:02:17]} Rxd4 {[%emt 0:01:33]} 19. Qf2 {[%emt 0:08:01]} Rhd8 {[%emt 0:04:31] normal} 1-0

[Event "GER-ch Youth U14w 2019"]
[Site "Willingen"]
[Date "2019.06.15"]
[Round "9.7"]
[White "Avetyan, Manan"]
[Black "Liu, Sijia Anna"]
[Result "0-1"]
[ECO "B43"]
[WhiteElo "1307"]
[BlackElo "1705"]
[Annotator "NA"]
[PlyCount "93"]
[EventDate "2019.06.07"]
[EventType "swiss"]
[EventRounds "9"]
[EventCountry "GER"]
[SourceTitle "playchess.com"]
[Source "ChessBase"]
[SourceQuality "1"]
[TimeControl "40/5400+30:1800+30"]

1. e4 {[%emt 0:00:00]} c5 {[%emt 0:00:00]} 2. Nf3 {[%emt 0:00:00]} e6 {[%emt 0:00:00]} 3. d4 {[%emt 0:00:00]} cxd4 {[%emt 0:00:00]} 4. Nxd4 {[%emt 0:00:00]} a6 {[%emt 0:00:11]} 5. Nc3 {[%emt 0:00:00]} Qc7 {[%emt 0:00:22]} 6. g3 {[%emt 0:00:38]} Bb4 {[%emt 0:00:47]} 7. Bd2 {[%emt 0:02:09]} Nf6 {[%emt 0:02:58]} 8. Bg2 {[%emt 0:02:17]} Nc6 {[%emt 0:00:27]} 9. Nb3 {[%emt 0:02:16]} O-O {[%emt 0:02:08]} 10. O-O {[%emt 0:02:11]} Be7 {[%emt 0:01:20]} 11. Kh1 {[%emt 0:08:56]} d6 {[%emt 0:03:53]} 12. f4 {[%emt 0:08:06]} b5 {[%emt 0:03:07]} 13. a3 {[%emt 0:13:02]} Re8 {[%emt 0:07:43]} 14. Qe2 {[%emt 0:08:37]} Bb7 {[%emt 0:10:09]} 15. g4 {[%emt 0:08:55]} Rac8 {[%emt 0:04:48]} 16. g5 {[%emt 0:04:51]} Nd7 {[%emt 0:03:54]} 17. Rf3 {[%emt 0:03:37]} g6 {[%emt 0:12:29]} 18. h4 {[%emt 0:04:03]} Nc5 {[%emt 0:06:13]} 19. Be3 {[%emt 0:06:13]} b4 {[%emt 0:08:04]} 20. axb4 {[%emt 0:03:37]} Nxb4 {[%emt 0:01:19]} 21. Nxc5 {[%emt 0:02:13]} dxc5 {[%emt 0:00:31]} 22. Rh3 {[%emt 0:01:18]} Nc6 {[%emt 0:03:21]} 23. h5 {[%emt 0:02:32]} Bf8 {[%emt 0:02:32]} 24. Rf1 {[%emt 0:03:17]} Rcd8 {[%emt 0:03:27]} 25. hxg6 {[%emt 0:00:33]} fxg6 {[%emt 0:01:12]} 26. f5 {[%emt 0:01:14]} Nd4 {[%emt 0:02:13]} 27. Qc4 {[%emt 0:03:00]} gxf5 {[%emt 0:05:07]} 28. exf5 {[%emt 0:00:16]} Bxg2+ {[%emt 0:02:01]} 29. Kxg2 {[%emt 0:00:04]} Nxc2 {[%emt 0:00:23]} 30. fxe6 {[%emt 0:01:46]} Nxe3+ {[%emt 0:01:03]} 31. Rxe3 {[%emt 0:00:03]} Rd4 {[%emt 0:00:42]} 32. Qe2 {[%emt 0:01:54]} Qc6+ {[%emt 0:06:11]} 33. Kg1 {[%emt 0:00:31]} Rh4 {[%emt 0:01:45]} 34. Ref3 {[%emt 0:02:55]} Bg7 {[%emt 0:01:41]} 35. Qd3 {[%emt 0:03:12]} Bd4+ {[%emt 0:01:52]} 36. Kg2 {[%emt 0:00:36]} Rg4+ {[%emt 0:01:11]} 37. Kh1 {[%emt 0:01:06]} Rxg5 {[%emt 0:01:37]} 38. Ne4 {[%emt 0:00:47]} Rh5+ {[%emt 0:00:21]} 39. Kg2 {[%emt 0:00:09]} Qxe6 {[%emt 0:00:53]} 40. Rg3+ {[%emt 0:02:22]} Kh8 {[%emt 0:00:29]} 41. Qf3 {[%emt 0:01:44]} Qh6 {[%emt 0:01:59]} 42. Nf2 {[%emt 0:05:52]} Rh2+ {[%emt 0:01:33]} 43. Kg1 {[%emt 0:00:09]} Bxf2+ {[%emt 0:00:37]} 44. Rxf2 {[%emt 0:00:52]} Re1+ {[%emt 0:00:38]} 45. Rf1 {[%emt 0:00:08]} Rxf1+ {[%emt 0:00:21]} 46. Kxf1 {[%emt 0:00:35]} Qc1+ {[%emt 0:00:11]} 47. Qd1 {normal} 0-1

[Event "GER-ch Youth U14w 2019"]
[Site "Willingen"]
[Date "2019.06.15"]
[Round "9.8"]
[White "Kalina, Lena"]
[Black "Schmidt, Pauline"]
[Result "1/2-1/2"]
[ECO "E12"]
[WhiteElo "1687"]
[BlackElo "1620"]
[Annotator "NA"]
[PlyCount "95"]
[EventDate "2019.06.07"]
[EventType "swiss"]
[EventRounds "9"]
[EventCountry "GER"]
[SourceTitle "playchess.com"]
[Source "ChessBase"]
[SourceQuality "1"]
[TimeControl "40/5400+30:1800+30"]

1. d4 {[%emt 0:00:00]} Nf6 2. c4 e6 {[%emt 0:00:00]} 3. Nf3 {[%emt 0:00:00]} b6 {[%emt 0:00:00]} 4. a3 {[%emt 0:00:00]} Bb7 {[%emt 0:00:00]} 5. Nc3 {[%emt 0:00:00]} d5 {[%emt 0:00:07]} 6. cxd5 {[%emt 0:00:09]} Nxd5 {[%emt 0:00:10]} 7. Bd2 {[%emt 0:00:31]} Be7 {[%emt 0:02:12]} 8. Qc2 {[%emt 0:01:38]} O-O {[%emt 0:01:48]} 9. e4 {[%emt 0:01:07]} Nxc3 {[%emt 0:00:58]} 10. Bxc3 {[%emt 0:00:43]} c5 {[%emt 0:01:19]} 11. Rd1 {[%emt 0:10:01]} Qc7 {[%emt 0:03:24]} 12. dxc5 {[%emt 0:11:01]} Bxc5 {[%emt 0:03:04]} 13. Bd3 {[%emt 0:02:46]} Nc6 {[%emt 0:05:36]} 14. O-O {[%emt 0:02:24]} Rac8 {[%emt 0:02:28]} 15. b4 {[%emt 0:04:47]} Be7 {[%emt 0:03:36]} 16. Qb2 {[%emt 0:02:14]} f6 {[%emt 0:04:26]} 17. Rc1 {[%emt 0:05:38]} Qb8 {[%emt 0:03:03]} 18. Bc4 {[%emt 0:02:14]} Nd8 {[%emt 0:03:08]} 19. Qe2 {[%emt 0:06:54]} Qa8 {[%emt 0:06:01]} 20. Rfe1 {[%emt 0:06:55]} Kh8 {[%emt 0:03:33]} 21. Bb3 {[%emt 0:13:55]} e5 {[%emt 0:03:37]} 22. Nh4 {[%emt 0:02:32]} g6 {[%emt 0:06:28]} 23. Qg4 {[%emt 0:04:20]} Rc7 {[%emt 0:16:47]} 24. Re3 {[%emt 0:15:33]} Bc8 {[%emt 0:07:20]} 25. Qg3 {[%emt 0:04:08]} Bd6 {[%emt 0:10:53]} 26. Rd1 {[%emt 0:00:38]} Nb7 {[%emt 0:01:09]} 27. Bd5 {[%emt 0:00:37]} Rd8 {[%emt 0:01:47]} 28. Red3 {[%emt 0:01:27]} Qb8 {[%emt 0:00:59]} 29. Nf3 {[%emt 0:00:58]} Re7 {[%emt 0:03:02]} 30. Bb3 {[%emt 0:01:00]} Qc7 {[%emt 0:03:30]} 31. Nd2 {[%emt 0:00:43]} b5 {[%emt 0:01:09]} 32. Nf1 {[%emt 0:00:29]} Qd7 {[%emt 0:01:09]} 33. Ne3 {[%emt 0:00:25]} Ree8 {[%emt 0:01:34]} 34. f3 {[%emt 0:00:37]} Qe7 {[%emt 0:00:45]} 35. Nd5 {[%emt 0:00:21]} Qf8 {[%emt 0:00:12]} 36. Qf2 {[%emt 0:00:42]} a5 {[%emt 0:01:43]} 37. Kh1 {[%emt 0:00:16]} axb4 {[%emt 0:00:30]} 38. axb4 {[%emt 0:00:01]} Be6 {[%emt 0:00:48]} 39. Qb6 {[%emt 0:00:59]} Rb8 {[%emt 0:00:35]} 40. Qf2 {[%emt 0:00:41]} Bxd5 {[%emt 0:00:22]} 41. Bxd5 {[%emt 0:04:41]} Bxb4 {[%emt 0:01:41]} 42. Bc6 {[%emt 0:04:32]} Rec8 {[%emt 0:02:45]} 43. Bxb4 {[%emt 0:05:11]} Qxb4 {[%emt 0:00:54]} 44. Bd5 {[%emt 0:02:31]} Nc5 {[%emt 0:01:38]} 45. R3d2 {[%emt 0:01:09]} Na4 {[%emt 0:01:12]} 46. Be6 {[%emt 0:05:25]} Re8 {[%emt 0:02:30]} 47. Bf7 {[%emt 0:01:55]} Rf8 {[%emt 0:01:02]} 48. Rd7 {[%emt 0:03:16] normal} 1/2-1/2

[Event "GER-ch Youth U14w 2019"]
[Site "Willingen"]
[Date "2019.06.15"]
[Round "9.9"]
[White "Oswald, Hannah"]
[Black "Zoellner, Bente"]
[Result "0-1"]
[ECO "B32"]
[WhiteElo "1632"]
[BlackElo "1530"]
[Annotator "NA"]
[PlyCount "39"]
[EventDate "2019.06.07"]
[EventType "swiss"]
[EventRounds "9"]
[EventCountry "GER"]
[SourceTitle "playchess.com"]
[Source "ChessBase"]
[SourceQuality "1"]
[TimeControl "40/5400+30:1800+30"]

1. e4 {[%emt 0:00:00]} c5 {[%emt 0:00:00]} 2. Nf3 {[%emt 0:00:00]} Nc6 {[%emt 0:00:00]} 3. d4 {[%emt 0:00:00]} cxd4 {[%emt 0:00:00]} 4. Nxd4 {[%emt 0:00:00]} e5 {[%emt 0:00:07]} 5. Nb5 {[%emt 0:01:07]} d6 {[%emt 0:00:22]} 6. c4 {[%emt 0:01:51]} Be7 {[%emt 0:00:50]} 7. Be2 {[%emt 0:05:08]} Be6 {[%emt 0:02:15]} 8. Be3 {[%emt 0:04:35]} Nf6 {[%emt 0:08:25]} 9. N1c3 {[%emt 0:02:19]} a6 {[%emt 0:01:11]} 10. Na3 {[%emt 0:00:41]} O-O {[%emt 0:01:07]} 11. O-O {[%emt 0:00:28]} Ne8 {[%emt 0:03:48]} 12. Bg4 {[%emt 0:06:31]} Bg5 {[%emt 0:05:07]} 13. Bc1 {[%emt 0:09:16]} Bxc1 {[%emt 0:03:20]} 14. Rxc1 {[%emt 0:00:39]} Bxg4 {[%emt 0:01:29]} 15. Qxg4 {[%emt 0:00:11]} Nf6 {[%emt 0:01:48]} 16. Qe2 {[%emt 0:04:40]} Nd4 {[%emt 0:04:39]} 17. Qd2 {[%emt 0:03:06]} Nh5 {[%emt 0:16:29]} 18. Nc2 {[%emt 0:03:49]} Nf4 {[%emt 0:03:59]} 19. Kh1 {[%emt 0:06:07]} Qg5 {[%emt 0:06:16]} 20. g3 {[%emt 0:11:01] normal} 0-1

[Event "GER-ch Youth U14w 2019"]
[Site "Willingen"]
[Date "2019.06.15"]
[Round "9.10"]
[White "Wagner, Margarethe"]
[Black "Berghold, Lotta"]
[Result "1-0"]
[ECO "B00"]
[WhiteElo "1741"]
[BlackElo "1471"]
[Annotator "NA"]
[PlyCount "98"]
[EventDate "2019.06.07"]
[EventType "swiss"]
[EventRounds "9"]
[EventCountry "GER"]
[SourceTitle "playchess.com"]
[Source "ChessBase"]
[SourceQuality "1"]
[TimeControl "40/5400+30:1800+30"]

1. e4 {[%emt 0:00:00]} b6 {[%emt 0:00:00]} 2. d4 {[%emt 0:00:00]} Bb7 {[%emt 0:00:00]} 3. Bd3 {[%emt 0:00:00]} e6 {[%emt 0:00:00]} 4. Nf3 {[%emt 0:00:17]} Nf6 {[%emt 0:00:08]} 5. Qe2 {[%emt 0:00:26]} d5 {[%emt 0:00:35]} 6. e5 {[%emt 0:01:00]} Ne4 {[%emt 0:00:15]} 7. Nbd2 {[%emt 0:02:01]} Nxd2 {[%emt 0:00:08]} 8. Bxd2 {[%emt 0:00:13]} Nd7 {[%emt 0:01:50]} 9. Bg5 {[%emt 0:06:07]} Be7 {[%emt 0:00:11]} 10. h4 {[%emt 0:00:41]} h6 {[%emt 0:01:50]} 11. Bxe7 Qxe7 {[%emt 0:00:07]} 12. c3 {[%emt 0:02:22]} c5 {[%emt 0:05:54]} 13. a3 {[%emt 0:02:58]} c4 {[%emt 0:09:16]} 14. Bc2 {[%emt 0:00:48]} b5 {[%emt 0:00:56]} 15. Qd2 {[%emt 0:07:48]} a5 {[%emt 0:04:07]} 16. Rh3 {[%emt 0:03:27]} Nf8 {[%emt 0:10:44]} 17. Ke2 {[%emt 0:06:24]} Kd8 {[%emt 0:11:17]} 18. Rg3 {[%emt 0:04:16]} g6 {[%emt 0:10:01]} 19. Qf4 {[%emt 0:07:15]} Bc6 {[%emt 0:05:48]} 20. Ng1 {[%emt 0:02:13]} Be8 {[%emt 0:03:56]} 21. Nh3 {[%emt 0:03:36]} h5 {[%emt 0:05:13]} 22. Rf3 {[%emt 0:06:44]} Nh7 {[%emt 0:01:45]} 23. g3 {[%emt 0:07:07]} Ra7 {[%emt 0:04:17]} 24. Qh6 {[%emt 0:05:39]} Qf8 {[%emt 0:01:33]} 25. Qxf8 {[%emt 0:00:42]} Rxf8 {[%emt 0:01:54]} 26. Nf4 {[%emt 0:01:37]} Rh8 {[%emt 0:02:40]} 27. Kd2 {[%emt 0:04:22]} a4 {[%emt 0:01:06]} 28. Rg1 {[%emt 0:01:28]} Nf8 {[%emt 0:04:23]} 29. g4 {[%emt 0:02:43]} hxg4 {[%emt 0:00:06]} 30. Rxg4 {[%emt 0:00:08]} Re7 {[%emt 0:05:23]} 31. Rh3 {[%emt 0:02:13]} Nd7 {[%emt 0:01:47]} 32. Rg5 {[%emt 0:04:54]} Rh6 {[%emt 0:02:39]} 33. Ke3 {[%emt 0:02:35]} Rh8 {[%emt 0:01:26]} 34. Ng2 {[%emt 0:04:21]} Rh6 {[%emt 0:03:52]} 35. Rf3 {[%emt 0:00:49]} Rh8 {[%emt 0:00:28]} 36. Rfg3 {[%emt 0:03:01]} Rh6 {[%emt 0:00:45]} 37. Rh3 {[%emt 0:01:13]} Rh8 {[%emt 0:00:38]} 38. Nf4 {[%emt 0:00:50]} Rh6 {[%emt 0:00:41]} 39. Kf3 {[%emt 0:01:12]} Rh8 {[%emt 0:00:26]} 40. Kg2 {[%emt 0:02:19]} Rh6 {[%emt 0:00:18]} 41. Bb1 {[%emt 0:33:38]} Rh8 {[%emt 0:31:02]} 42. h5 {[%emt 0:00:00]} gxh5 {[%emt 0:00:00]} 43. Rhxh5 {[%emt 0:00:00]} Rxh5 {[%emt 0:00:00]} 44. Nxh5 {[%emt 0:00:00]} Nb8 {[%emt 0:00:00]} 45. Nf6 {[%emt 0:00:00]} Nc6 {[%emt 0:00:00]} 46. Kf1 {[%emt 0:00:00]} Na5 {[%emt 0:00:00]} 47. Ke2 {[%emt 0:00:00]} Nc6 {[%emt 0:00:00]} 48. Rg8 {[%emt 0:00:00]} Nb8 {[%emt 0:00:00]} 49. Bh7 {[%emt 0:00:00]} Nd7 {[%emt 0:00:00] normal} 1-0